bitfinex/quotes_BTCUSD_20250224
["timestamp","ask_amount","ask_price","bid_price","bid_amount"]
[1740433096809,0.0050133,94498.0,94497.0,0.158735]
[1740433097017,0.00127981,94498.0,94497.0,0.160735]
[1740433097215,0.00501329,94498.0,94497.0,0.160735]
[1740433098225,0.00127981,94498.0,94497.0,0.163735]
[1740433098569,0.0050133,94498.0,94497.0,0.163735]
[1740433099096,0.1637463,94498.0,94497.0,0.005]
[1740433101352,0.0050133,94498.0,94497.0,0.005]
[1740433101546,0.1637463,94498.0,94497.0,0.005]
[1740433102807,0.158765,94479.0,94478.0,0.0828]
[1740433102976,0.16250572,94479.0,94478.0,0.0828]
[1740433103187,0.00374072,94479.0,94478.0,0.0828]
[1740433103354,0.211677,94484.0,94478.0,0.0828]
[1740433103523,0.158764,94480.0,94478.0,0.0828]
[1740433103803,0.00374072,94479.0,94478.0,0.0828]
[1740433103971,0.211672,94486.0,94478.0,0.0828]
[1740433104175,0.158762,94481.0,94478.0,0.0898]
[1740433104383,0.00374072,94480.0,94478.0,0.0898]
[1740433104566,0.16250372,94480.0,94478.0,0.0898]
[1740433105115,0.00374072,94480.0,94478.0,0.0828]
[1740433105456,0.158762,94481.0,94478.0,0.0828]
[1740433105663,0.00374488,94479.0,94478.0,0.0828]
[1740433105861,0.158762,94481.0,94478.0,0.0828]
[1740433106064,0.158762,94481.0,94478.0,0.0898]
[1740433106065,0.00374488,94479.0,94478.0,0.0898]
[1740433106262,0.158765,94479.0,94478.0,0.0898]
[1740433106465,0.158765,94479.0,94478.0,0.005]
[1740433106466,0.16250988,94479.0,94478.0,0.005]
[1740433106715,0.15877,94476.0,94475.0,0.0016982]
[1740433106930,0.00374488,94479.0,94475.0,0.0016982]
[1740433107064,0.00374488,94479.0,94478.0,0.003]
[1740433107269,0.15877,94477.0,94475.0,0.0016982]
[1740433107505,0.158768,94478.0,94475.0,0.0016982]
[1740433108016,0.0037449,94477.0,94475.0,0.0016982]
[1740433108914,1.01454085,94512.0,94475.0,0.0056982]
[1740433108915,0.158764,94480.0,94475.0,0.0056982]
[1740433109126,0.15,94496.0,94476.0,0.158769]
[1740433109353,0.00374489,94479.0,94475.0,0.0016982]
[1740433109487,0.158757,94484.0,94479.0,0.158765]
[1740433109688,0.158759,94483.0,94479.0,0.158765]
[1740433109928,0.1625039,94483.0,94479.0,0.158765]
[1740433110598,0.1625039,94483.0,94478.0,0.158766]
[1740433110802,0.1625039,94483.0,94479.0,0.001]
[1740433111633,0.1625039,94483.0,94478.0,0.158766]
[1740433111856,0.0037449,94483.0,94479.0,0.158765]
[1740433112149,0.15876,94482.0,94478.0,0.158766]
[1740433112506,0.158759,94483.0,94479.0,0.002]
[1740433112704,0.0037449,94481.0,94480.0,0.158763]
[1740433112918,0.211655,94493.0,94479.0,0.160764]
[1740433113118,0.158757,94484.0,94479.0,0.160764]
[1740433113528,0.0037449,94483.0,94479.0,0.160764]
[1740433113942,0.0037449,94483.0,94479.0,0.158764]
[1740433114140,0.1625039,94483.0,94478.0,0.158766]
[1740433114365,0.0037449,94483.0,94479.0,0.158765]
[1740433114568,0.158755,94485.0,94479.0,0.158765]
[1740433114788,0.00374491,94484.0,94478.0,0.001]
[1740433114962,0.158754,94486.0,94481.0,0.158761]
[1740433115138,0.15,94497.0,94488.0,0.083]
[1740433115566,0.00127981,94498.0,94488.0,0.083]
[1740433116165,0.00127981,94498.0,94494.0,0.15874]
[1740433116369,0.00127981,94498.0,94495.0,0.158738]
[1740433116579,0.00127981,94498.0,94488.0,0.083]
[1740433116777,0.21292481,94498.0,94488.0,0.083]
[1740433116987,0.158738,94496.0,94488.0,0.083]
[1740433117190,0.00127981,94498.0,94494.0,0.158738]
[1740433117421,0.00427981,94498.0,94494.0,0.158738]
[1740433117713,0.00427981,94498.0,94492.0,0.158742]
[1740433117995,0.003,94497.0,94496.0,0.158736]
[1740433118440,0.00427981,94498.0,94497.0,0.158735]
[1740433118845,0.00727981,94498.0,94497.0,0.158735]
[1740433119245,0.00427981,94498.0,94497.0,0.158735]
[1740433119446,0.00127981,94498.0,94497.0,0.158735]
[1740433119661,0.00227981,94498.0,94497.0,0.158735]
[1740433120348,0.00227981,94498.0,94497.0,0.159735]
[1740433120976,0.00227981,94498.0,94497.0,0.161735]
[1740433134787,0.00227981,94498.0,94497.0,0.1634328]
[1740433141494,0.00227981,94498.0,94497.0,0.31177849]
[1740433141699,0.00227981,94498.0,94497.0,0.39187849]
[1740433142495,0.00227981,94498.0,94497.0,0.39087849]
[1740433142496,0.00127981,94498.0,94497.0,0.39087849]
[1740433142714,0.00127981,94498.0,94497.0,0.38887849]
[1740433142957,0.00127981,94498.0,94497.0,0.39187849]
[1740433143202,0.00127981,94498.0,94497.0,0.39087849]
[1740433143381,0.00127981,94498.0,94497.0,0.39287849]
[1740433143625,0.00127981,94498.0,94497.0,0.39887849]
[1740433154789,0.00127981,94498.0,94497.0,0.24014349]
[1740433154994,0.00127981,94498.0,94497.0,0.1374978]
[1740433155145,0.19537245,94498.0,94497.0,0.0116978]
[1740433155357,0.19161775,94498.0,94497.0,0.0116978]
[1740433155558,0.03664578,94498.0,94497.0,0.0116978]
[1740433156123,0.03664578,94498.0,94497.0,0.0016978]
[1740433156327,0.00504084,94498.0,94497.0,0.0046978]
[1740433156464,0.03286661,94498.0,94497.0,0.1654328]
[1740433156800,0.00504081,94498.0,94497.0,0.0036978]
[1740433157012,0.00504081,94498.0,94497.0,0.0066978]
[1740433157211,0.00127981,94498.0,94497.0,0.1654328]
[1740433157395,0.00504081,94498.0,94497.0,0.1654328]
[1740433157599,0.00504081,94498.0,94497.0,0.0066978]
[1740433159205,0.03698869,94498.0,94497.0,0.0066978]
[1740433159598,0.00504081,94498.0,94497.0,0.0066978]
[1740433160195,0.00504081,94498.0,94497.0,0.1654328]
[1740433160595,0.00127981,94498.0,94497.0,0.1654328]
[1740433161006,0.005036,94498.0,94497.0,0.1654328]
[1740433161197,0.00127981,94498.0,94497.0,0.1654328]
[1740433161404,0.00503599,94498.0,94497.0,0.1654328]
[1740433161808,0.00127981,94498.0,94497.0,0.1654328]
[1740433162648,0.005036,94498.0,94497.0,0.1654328]
[1740433163469,0.00127981,94498.0,94497.0,0.1654328]
[1740433164299,0.9073365,94512.0,94497.0,0.0066978]
[1740433164524,0.158712,94511.0,94505.0,0.15670331]
[1740433164711,0.00375276,94511.0,94505.0,0.15670331]
[1740433164911,0.00375276,94511.0,94499.0,0.211642]
[1740433165136,0.158716,94509.0,94501.0,0.158727]
[1740433165344,0.158716,94508.0,94497.0,0.2133438]
[1740433165552,0.00375323,94508.0,94498.0,0.211644]
[1740433165698,0.00375323,94508.0,94503.0,0.158723]
[1740433165900,0.18968966,94511.0,94503.0,0.158723]
[1740433166099,0.03197766,94511.0,94497.0,0.0016978]
[1740433166334,0.03197766,94511.0,94505.0,0.15872]
[1740433166550,0.001,94508.0,94503.0,0.211632]
[1740433166860,0.001,94508.0,94505.0,0.15872]
[1740433167407,0.18968866,94511.0,94505.0,0.15872]
[1740433167637,0.03097766,94511.0,94497.0,0.0016978]
[1740433167987,0.90746578,94512.0,94510.0,0.158713]
[1740433168362,0.93909646,94512.0,94509.0,0.158714]
[1740433168574,0.93909646,94512.0,94503.0,0.211632]
[1740433168882,0.001,94511.0,94506.0,0.158718]
[1740433169034,0.93909646,94512.0,94502.0,0.0456]
[1740433169245,0.93909646,94512.0,94508.0,0.158716]
[1740433169656,0.93909646,94512.0,94509.0,0.158713]
[1740433170163,0.93909646,94512.0,94508.0,0.158716]
[1740433170784,0.93909646,94512.0,94511.0,0.158711]
[1740433170902,0.90746578,94512.0,94511.0,0.158711]
[1740433171720,0.91121968,94512.0,94511.0,0.158711]
[1740433172131,0.91121968,94512.0,94511.0,0.159711]
[1740433177033,0.91121968,94512.0,94511.0,0.26235669]
[1740433177797,0.91121968,94512.0,94511.0,0.26135669]
[1740433178109,0.91121968,94512.0,94511.0,0.26235669]
[1740433192410,0.91121968,94512.0,94511.0,0.39115669]
[1740433192987,0.91121968,94512.0,94511.0,0.39015669]
[1740433193398,0.91121968,94512.0,94511.0,0.39115669]
[1740433193798,0.91121968,94512.0,94511.0,0.39015669]
[1740433194122,0.91121968,94512.0,94511.0,0.40115669]
[1740433194887,0.91206888,94512.0,94511.0,0.40115669]
[1740433195320,0.91206888,94512.0,94511.0,0.39715669]
[1740433195599,0.6807742,94512.0,94511.0,0.40215669]
[1740433203699,0.6807742,94512.0,94511.0,0.39515669]
[1740433204254,0.6807742,94512.0,94511.0,0.40215669]
[1740433205704,0.6807742,94512.0,94511.0,0.39715669]
[1740433206064,0.6807742,94512.0,94511.0,0.40315669]
[1740433206808,0.6807742,94512.0,94511.0,0.40485509]
[1740433210686,0.6807742,94512.0,94511.0,0.35875509]
[1740433211900,0.6807742,94512.0,94511.0,0.0146984]
[1740433212076,0.8394842,94512.0,94511.0,0.0146984]
[1740433212287,0.86610065,94512.0,94511.0,0.0146984]
[1740433212718,1.01610065,94512.0,94511.0,0.0146984]
[1740433212914,1.01610065,94512.0,94511.0,0.0016984]
[1740433213072,1.01610065,94512.0,94511.0,0.0056984]
[1740433213293,1.01610065,94512.0,94511.0,0.0086984]
[1740433213865,1.01941521,94512.0,94511.0,0.0086984]
[1740433214266,1.01941521,94512.0,94511.0,0.0016984]
[1740433214961,1.01941521,94512.0,94511.0,0.0036984]
[1740433215200,1.01941521,94512.0,94511.0,0.0016984]
[1740433215330,1.01941521,94512.0,94511.0,0.0036984]
[1740433215533,1.01941521,94512.0,94511.0,0.0106984]
[1740433215534,1.1685609,94512.0,94511.0,0.0106984]
[1740433215942,1.2212609,94512.0,94511.0,0.0106984]
[1740433216546,1.2212609,94512.0,94511.0,0.0036984]
[1740433216766,1.2212609,94512.0,94511.0,0.0016984]
[1740433216988,1.2212609,94512.0,94511.0,0.0066984]
[1740433220614,1.21794634,94512.0,94511.0,0.0066984]
[1740433230108,1.21794634,94512.0,94505.0,1e-06]
[1740433230109,0.37596085,94506.0,94505.0,1e-06]
[1740433230350,0.158767,94478.0,94466.0,0.0016976]
[1740433230772,0.1625237,94478.0,94466.0,0.0016976]
[1740433231695,0.16261029,94478.0,94466.0,0.0016976]
[1740433232093,0.16430418,94478.0,94466.0,0.0016976]
[1740433233577,0.16430418,94478.0,94477.0,0.0056978]
[1740433235767,0.41694987,94478.0,94477.0,0.0056978]
[1740433237252,0.48986945,94478.0,94477.0,0.0056978]
[1740433238143,0.48441886,94478.0,94477.0,0.0056978]
[1740433238375,0.48907912,94478.0,94477.0,0.0056978]
[1740433240764,0.49711992,94478.0,94477.0,0.0056978]
[1740433242113,0.50043574,94478.0,94477.0,0.0056978]
[1740433242857,0.42751616,94478.0,94477.0,0.0056978]
[1740433244394,0.42420034,94478.0,94477.0,0.0056978]
[1740433250578,0.31351385,94478.0,94477.0,0.0056978]
[1740433250990,0.00474685,94478.0,94477.0,0.0820978]
[1740433251351,8.659e-05,94478.0,94477.0,0.0820978]
[1740433251564,0.00474588,94478.0,94477.0,0.0820978]
[1740433251811,0.00474588,94478.0,94477.0,0.0780978]
[1740433252027,8.659e-05,94478.0,94477.0,0.0780978]
[1740433252356,0.16351288,94478.0,94477.0,0.0780978]
[1740433252682,0.16351288,94478.0,94477.0,0.0820978]
[1740433252873,0.16351288,94478.0,94477.0,0.0840978]
[1740433253898,0.16351288,94478.0,94477.0,0.0800978]
[1740433254363,0.16351288,94478.0,94477.0,0.0870978]
[1740433260686,0.211673,94486.0,94477.0,0.0870978]
[1740433260896,0.16326286,94478.0,94477.0,0.38752891]
[1740433261094,0.158767,94478.0,94477.0,0.38752891]
[1740433261327,0.16326286,94478.0,94477.0,0.38752891]
[1740433261648,0.16326286,94478.0,94477.0,0.37852891]
[1740433261869,0.16326286,94478.0,94477.0,0.38252891]
[1740433262253,0.16326286,94478.0,94477.0,0.30612891]
[1740433262463,0.16326286,94478.0,94477.0,0.30212891]
[1740433262675,0.16326286,94478.0,94477.0,0.30412891]
[1740433262893,0.158783,94468.0,94467.0,0.0016984]
[1740433263100,0.26142869,94468.0,94467.0,0.00178499]
[1740433263297,0.158785,94467.0,94466.0,8.659e-05]
[1740433263488,0.26143069,94467.0,94466.0,8.659e-05]
[1740433263638,0.26151276,94467.0,94466.0,8.659e-05]
[1740433263850,0.26600896,94467.0,94466.0,8.659e-05]
[1740433264470,0.28938296,94467.0,94466.0,8.659e-05]
[1740433264886,0.18673727,94467.0,94466.0,8.659e-05]
[1740433265088,0.02795227,94467.0,94466.0,8.659e-05]
[1740433265332,0.18973727,94467.0,94466.0,0.00108659]
[1740433265732,0.19273727,94467.0,94466.0,0.00108659]
[1740433266559,0.18673727,94467.0,94466.0,0.00108659]
[1740433266759,0.18673727,94467.0,94466.0,8.659e-05]
[1740433266977,0.02795227,94467.0,94466.0,8.659e-05]
[1740433267204,0.00457827,94467.0,94466.0,0.13368659]
[1740433267352,8.207e-05,94467.0,94466.0,0.13368659]
[1740433267577,8.207e-05,94467.0,94466.0,0.13268659]
[1740433267991,0.00308207,94467.0,94466.0,0.29347359]
[1740433270810,0.00308207,94467.0,94466.0,0.29147359]
[1740433271064,0.00308207,94467.0,94466.0,0.29347359]
[1740433271420,8.207e-05,94467.0,94466.0,0.29347359]
[1740433271623,8.207e-05,94467.0,94466.0,0.29147359]
[1740433271856,8.207e-05,94467.0,94466.0,0.29347359]
[1740433273869,8.207e-05,94467.0,94466.0,0.30047359]
[1740433276442,0.00339743,94467.0,94466.0,0.30047359]
[1740433278962,0.00339743,94467.0,94466.0,0.40311928]
[1740433280006,8.207e-05,94467.0,94466.0,0.40311928]
[1740433282066,0.000848,94522.0,94467.0,0.0786]
[1740433282290,0.158759,94483.0,94477.0,0.0786]
[1740433282753,0.1823887,94483.0,94477.0,0.0786]
[1740433283012,0.00449928,94482.0,94477.0,0.237367]
[1740433283218,0.00449928,94482.0,94478.0,0.158765]
[1740433283418,0.00449928,94482.0,94477.0,0.0786]
[1740433284055,0.00449928,94482.0,94477.0,0.0806]
[1740433284226,0.0236297,94483.0,94477.0,0.239367]
[1740433284429,0.0236297,94483.0,94477.0,0.237367]
[1740433284574,0.00433859,94482.0,94478.0,0.158766]
[1740433284927,0.00043106,94486.0,94485.0,0.158755]
[1740433285150,0.02471833,94486.0,94485.0,0.282155]
[1740433285381,0.00043106,94486.0,94485.0,0.282155]
[1740433285993,0.00043106,94486.0,94485.0,0.279155]
[1740433286522,0.00143106,94486.0,94485.0,0.279155]
[1740433287738,0.00143106,94486.0,94485.0,0.283155]
[1740433288138,0.00143106,94486.0,94485.0,0.1274]
[1740433289275,0.16018406,94486.0,94485.0,0.004]
[1740433291607,0.16452661,94486.0,94485.0,0.004]
[1740433295596,0.16452661,94486.0,94485.0,0.0037318]
[1740433295804,0.4171723,94486.0,94485.0,8e-07]
[1740433296545,0.158785,94467.0,94466.0,8.659e-05]
[1740433296848,0.16312344,94467.0,94466.0,8.659e-05]
[1740433297503,0.18659762,94467.0,94466.0,8.659e-05]
[1740433299067,0.00433844,94467.0,94466.0,8.659e-05]
[1740433299276,0.00433844,94467.0,94466.0,0.38961928]
[1740433299485,0.00043106,94486.0,94469.0,0.0454]
[1740433299683,0.158759,94483.0,94476.0,0.158769]
[1740433299903,0.21210406,94486.0,94466.0,0.21580159]
[1740433299904,0.00043106,94486.0,94485.0,0.286855]
[1740433301019,0.00043106,94486.0,94485.0,0.1281]
[1740433301477,0.00043106,94486.0,94485.0,0.286855]
[1740433301923,0.00043106,94486.0,94485.0,0.289855]
[1740433302489,0.00043106,94486.0,94485.0,0.288855]
[1740433302695,0.00043106,94486.0,94485.0,0.1281]
[1740433302855,0.00143106,94486.0,94485.0,0.1341]
[1740433303057,0.00143106,94486.0,94485.0,0.1351]
[1740433303269,0.00043106,94486.0,94485.0,0.1291]
[1740433303744,0.00143106,94486.0,94485.0,0.1361]
[1740433304351,0.00143106,94486.0,94485.0,0.1351]
[1740433304476,0.00143106,94486.0,94485.0,0.1371]
[1740433309924,0.16018406,94486.0,94485.0,0.0917]
[1740433310330,0.16453193,94486.0,94485.0,0.0917]
[1740433310508,0.00577893,94486.0,94485.0,0.0917]
[1740433311519,0.16453193,94486.0,94485.0,0.0917]
[1740433312145,0.00577893,94486.0,94485.0,0.0917]
[1740433312733,0.16453193,94486.0,94485.0,0.009]
[1740433312936,0.16018406,94486.0,94485.0,0.009]
[1740433313115,0.16453193,94486.0,94485.0,0.009]
[1740433313322,0.00577893,94486.0,94485.0,0.009]
[1740433313549,0.16453193,94486.0,94485.0,0.009]
[1740433313760,0.00577893,94486.0,94485.0,0.009]
[1740433314131,0.00577893,94486.0,94485.0,0.0106988]
[1740433314360,0.00662833,94486.0,94485.0,0.0106988]
[1740433314732,0.16538133,94486.0,94485.0,0.0106988]
[1740433318027,0.00662833,94486.0,94485.0,0.0106988]
[1740433318182,0.16538133,94486.0,94485.0,0.0106988]
[1740433325027,0.16538133,94486.0,94485.0,0.0036988]
[1740433325250,0.16438133,94486.0,94485.0,0.0016988]
[1740433325502,0.26702702,94486.0,94485.0,0.0016988]
[1740433325681,0.41702702,94486.0,94485.0,0.0016988]
[1740433325927,0.58241356,94486.0,94485.0,0.0016988]
[1740433326129,0.63511356,94486.0,94485.0,8e-07]
[1740433326337,0.63511356,94486.0,94475.0,0.0016988]
[1740433326338,0.30877,94476.0,94475.0,6e-07]
[1740433326557,0.158802,94457.0,94445.0,0.0795]
[1740433326873,0.15,94473.0,94445.0,0.0795]
[1740433327119,0.1629838,94457.0,94445.0,0.0795]
[1740433327308,0.15,94471.0,94445.0,0.0795]
[1740433327475,0.0041818,94457.0,94445.0,0.0795]
[1740433327680,0.10264569,94470.0,94445.0,0.0795]
[1740433327877,0.0041818,94457.0,94456.0,0.28953111]
[1740433328087,0.0008494,94486.0,94460.0,0.0793]
[1740433328298,0.0008494,94486.0,94460.0,0.238096]
[1740433328299,0.15877,94476.0,94460.0,0.238096]
[1740433328519,0.158772,94476.0,94460.0,0.0793]
[1740433328723,0.361676,94484.0,94460.0,0.0793]
[1740433329082,0.0008494,94486.0,94465.0,0.0769]
[1740433329360,0.00416994,94483.0,94466.0,0.158786]
[1740433329569,0.00416994,94483.0,94467.0,0.235685]
[1740433329570,0.15876,94483.0,94467.0,0.235685]
[1740433329777,0.0008494,94486.0,94467.0,0.0769]
[1740433329778,0.00416994,94482.0,94467.0,0.0769]
[1740433330190,0.0008494,94486.0,94470.0,0.0803]
[1740433330343,0.158763,94480.0,94470.0,0.0803]
[1740433330562,0.158778,94471.0,94470.0,0.0803]
[1740433331208,0.16294794,94471.0,94470.0,0.0803]
[1740433331606,0.00416994,94471.0,94470.0,0.0803]
[1740433331786,0.00416994,94471.0,94470.0,0.0853]
[1740433332002,0.158776,94473.0,94470.0,0.0853]
[1740433332328,0.00416994,94472.0,94470.0,0.0873]
[1740433332668,0.16294694,94472.0,94470.0,0.0873]
[1740433332866,0.16294694,94472.0,94470.0,0.0853]
[1740433333232,0.00402102,94471.0,94470.0,0.0853]
[1740433333645,0.00402102,94471.0,94470.0,0.0803]
[1740433333818,0.158778,94471.0,94470.0,0.0803]
[1740433334007,0.00402102,94471.0,94470.0,0.0853]
[1740433334231,0.00402102,94471.0,94470.0,0.0863]
[1740433334451,0.158776,94473.0,94470.0,0.0803]
[1740433334623,0.00402102,94471.0,94470.0,0.0853]
[1740433334890,0.158777,94473.0,94470.0,0.0863]
[1740433335009,0.16279802,94472.0,94470.0,0.0863]
[1740433335413,0.16279802,94472.0,94470.0,0.0813]
[1740433335672,0.16279802,94472.0,94470.0,0.0863]
[1740433336028,0.16279802,94472.0,94470.0,0.0853]
[1740433336228,0.00402102,94472.0,94470.0,0.0853]
[1740433336419,0.158777,94472.0,94470.0,0.0853]
[1740433336628,0.16279902,94471.0,94470.0,0.0853]
[1740433336828,0.00402102,94471.0,94470.0,0.0803]
[1740433337073,0.158778,94471.0,94470.0,0.0803]
[1740433337304,0.158778,94471.0,94470.0,0.0853]
[1740433337451,0.16279902,94471.0,94470.0,0.0853]
[1740433337809,0.16279902,94471.0,94470.0,0.0803]
[1740433338093,0.16279902,94471.0,94470.0,0.0863]
[1740433338295,0.00402102,94471.0,94470.0,0.0853]
[1740433338476,0.00402102,94471.0,94470.0,0.0879988]
[1740433338930,0.158777,94472.0,94470.0,0.0879988]
[1740433339144,0.16279902,94471.0,94470.0,0.0879988]
[1740433339345,0.00402102,94471.0,94470.0,0.0879988]
[1740433339562,0.158778,94471.0,94470.0,0.0879988]
[1740433339830,0.16279902,94471.0,94470.0,0.0869988]
[1740433340081,0.16279902,94471.0,94470.0,0.0819988]
[1740433340222,0.16279902,94471.0,94470.0,0.0869988]
[1740433340654,0.00402102,94471.0,94470.0,0.0819988]
[1740433341071,0.00402102,94471.0,94470.0,0.0879988]
[1740433341285,0.158778,94471.0,94470.0,0.0879988]
[1740433341435,0.16279902,94471.0,94470.0,0.0879988]
[1740433341832,0.16279902,94471.0,94470.0,0.0869988]
[1740433341990,0.16279902,94471.0,94470.0,0.0879988]
[1740433342185,0.16279902,94471.0,94470.0,0.0076988]
[1740433343100,0.16279902,94471.0,94470.0,0.0016988]
[1740433343534,0.16279902,94471.0,94470.0,0.0046988]
[1740433357143,0.16279902,94471.0,94470.0,0.0046988]
[1740433358788,0.16279902,94471.0,94470.0,0.0016988]
[1740433359003,0.16279902,94471.0,94470.0,0.0046988]
[1740433359607,0.16279902,94471.0,94470.0,0.0016988]
[1740433360155,0.16279902,94471.0,94470.0,0.0046988]
[1740433362186,0.15738312,94471.0,94470.0,0.0046988]
[1740433363782,0.00402102,94471.0,94470.0,0.2397788]
[1740433363909,0.00402102,94471.0,94470.0,0.2853788]
[1740433364116,0.0008491,94475.0,94471.0,0.158778]
[1740433364409,0.0008491,94475.0,94470.0,0.1265988]
[1740433364615,0.0008491,94475.0,94474.0,0.241673]
[1740433365645,0.0028491,94475.0,94474.0,0.241673]
[1740433365844,0.0008491,94475.0,94474.0,0.241673]
[1740433366660,0.0028491,94475.0,94474.0,0.243673]
[1740433367177,0.0028491,94475.0,94474.0,0.0849]
[1740433367767,0.0028491,94475.0,94474.0,0.243673]
[1740433367973,0.0008491,94475.0,94474.0,0.0829]
[1740433368160,0.0008491,94475.0,94474.0,0.241673]
[1740433368362,0.0008491,94475.0,94474.0,0.245673]
[1740433368558,0.0008491,94475.0,94474.0,0.0869]
[1740433368779,0.0008491,94475.0,94474.0,0.245673]
[1740433369134,0.0008491,94475.0,94474.0,0.0869]
[1740433370402,0.0008491,94475.0,94474.0,0.245673]
[1740433370597,0.0008491,94475.0,94474.0,0.0869]
[1740433371605,0.0008491,94475.0,94474.0,0.245673]
[1740433373355,0.0008491,94475.0,94474.0,0.0869]
[1740433373810,0.00473923,94475.0,94474.0,0.245673]
[1740433374047,0.0008491,94475.0,94474.0,0.0869]
[1740433374556,0.00473923,94475.0,94474.0,0.0869]
[1740433374778,0.0008491,94475.0,94474.0,0.0869]
[1740433375161,0.0008491,94475.0,94474.0,0.245673]
[1740433379787,0.0008491,94475.0,94474.0,0.0869]
[1740433380146,0.00474154,94475.0,94474.0,0.0869]
[1740433380349,0.0008491,94475.0,94474.0,0.0869]
[1740433380577,0.00474154,94475.0,94474.0,0.0869]
[1740433380816,0.0008491,94475.0,94474.0,0.0869]
[1740433381047,0.00474154,94475.0,94474.0,0.0869]
[1740433381279,0.0008491,94475.0,94474.0,0.0869]
[1740433382255,0.00474154,94475.0,94474.0,0.0869]
[1740433382730,0.16351354,94475.0,94474.0,0.004]
[1740433382960,0.1596211,94475.0,94474.0,0.004]
[1740433383200,0.41616055,94475.0,94474.0,0.004]
[1740433383667,0.158777,94472.0,94471.0,0.0016984]
[1740433384165,0.16267067,94472.0,94471.0,0.0016984]
[1740433384810,0.16267067,94472.0,94471.0,0.0036984]
[1740433385030,0.16367067,94472.0,94471.0,0.0036984]
[1740433385860,0.26631636,94472.0,94471.0,0.0036984]
[1740433387552,0.16367067,94472.0,94471.0,0.0036984]
[1740433389198,0.16367067,94472.0,94470.0,0.0016988]
[1740433389199,0.308778,94471.0,94470.0,2e-07]
[1740433389420,0.46412369,94471.0,94470.0,2e-07]
[1740433389660,0.51621736,94471.0,94470.0,2e-07]
[1740433390575,0.53475821,94471.0,94470.0,2e-07]
[1740433390812,0.53475821,94471.0,94416.0,0.001698]
[1740433390813,0.158802,94457.0,94439.0,0.081]
[1740433391030,0.26144769,94457.0,94439.0,0.081]
[1740433391252,0.26532515,94457.0,94439.0,0.081]
[1740433392223,0.26532515,94457.0,94456.0,0.00282711]
[1740433393809,0.26632515,94457.0,94456.0,0.00282711]
[1740433395278,0.35647637,94457.0,94456.0,0.00282711]
[1740433396003,0.52101722,94457.0,94456.0,0.00112931]
[1740433396235,1.25613122,94457.0,94456.0,0.00112931]
[1740433396459,1.02481785,94457.0,94456.0,0.00112931]
[1740433396678,0.86949485,94457.0,94456.0,0.00112931]
[1740433396980,0.86849485,94457.0,94456.0,0.00112931]
[1740433397221,0.86849485,94457.0,94456.0,0.00012931]
[1740433397461,0.87249485,94457.0,94456.0,0.00012931]
[1740433398141,0.87349485,94457.0,94456.0,0.00182771]
[1740433398346,0.91949485,94457.0,94456.0,0.00182771]
[1740433398583,0.91849485,94457.0,94456.0,0.00182771]
[1740433398851,0.158836,94437.0,94430.0,0.0787]
[1740433399078,0.158836,94437.0,94436.0,0.00178027]
[1740433399282,0.16257207,94437.0,94436.0,0.00178027]
[1740433399415,0.1658887,94437.0,94436.0,0.00178027]
[1740433400291,0.1658887,94437.0,94436.0,0.00378027]
[1740433400500,0.1658887,94437.0,94436.0,0.00878027]
[1740433401305,0.1658887,94437.0,94436.0,0.00378027]
[1740433401511,0.19243537,94437.0,94436.0,0.00378027]
[1740433402054,0.19343537,94437.0,94436.0,0.00378027]
[1740433404711,0.34569718,94437.0,94436.0,0.00378027]
[1740433406842,0.34569718,94437.0,94436.0,0.00178027]
[1740433407613,0.34538055,94437.0,94436.0,0.00178027]
[1740433408039,0.34638055,94437.0,94436.0,0.00178027]
[1740433410039,0.5109214,94437.0,94436.0,2.7e-07]
[1740433410302,0.5203614,94437.0,94436.0,2.7e-07]
[1740433410454,0.8468614,94437.0,94436.0,2.7e-07]
[1740433411095,0.8374214,94437.0,94436.0,2.7e-07]
[1740433411484,0.78780528,94437.0,94436.0,2.7e-07]
[1740433414084,0.77326443,94437.0,94436.0,2.7e-07]
[1740433416460,0.67061874,94437.0,94436.0,2.7e-07]
[1740433416636,0.66961874,94437.0,94436.0,0.07950027]
[1740433417098,0.66661874,94437.0,94436.0,0.07950027]
[1740433417604,0.66961874,94437.0,94436.0,0.07950027]
[1740433417953,0.67061874,94437.0,94436.0,0.07950027]
[1740433418149,0.66961874,94437.0,94436.0,0.07950027]
[1740433418346,0.51961874,94437.0,94436.0,0.07950027]
[1740433418800,0.03428274,94437.0,94436.0,0.08150027]
[1740433419001,0.00773607,94437.0,94436.0,0.24033727]
[1740433419314,0.004,94437.0,94436.0,0.08150027]
[1740433419704,0.1932272,94437.0,94436.0,0.07950027]
[1740433419903,0.16655656,94437.0,94436.0,0.07950027]
[1740433420126,0.16655656,94437.0,94436.0,0.08150027]
[1740433420127,0.16255656,94437.0,94436.0,0.08150027]
[1740433420511,0.16355656,94437.0,94436.0,0.08150027]
[1740433420711,0.16255656,94437.0,94436.0,0.08150027]
[1740433421148,0.16255656,94437.0,94436.0,0.08719927]
[1740433421367,0.18979468,94437.0,94436.0,0.08719927]
[1740433421520,0.18979468,94437.0,94436.0,0.08519927]
[1740433421721,0.19079468,94437.0,94436.0,0.09219927]
[1740433422441,0.16255656,94437.0,94436.0,0.09219927]
[1740433422811,0.18875765,94437.0,94436.0,0.09219927]
[1740433424046,0.16255656,94437.0,94436.0,0.09219927]
[1740433424212,0.00372056,94437.0,94436.0,0.09219927]
[1740433424417,0.00372056,94437.0,94436.0,0.25103627]
[1740433424632,0.211772,94441.0,94440.0,0.0794]
[1740433425089,0.21523155,94441.0,94440.0,0.0794]
[1740433426374,0.21523155,94441.0,94440.0,0.0854]
[1740433427174,0.21523155,94441.0,94440.0,0.0874]
[1740433430294,0.21523155,94441.0,94440.0,0.008]
[1740433431040,0.158836,94437.0,94436.0,0.00169927]
[1740433431447,0.1623014,94437.0,94436.0,0.00169927]
[1740433432143,0.1623014,94437.0,94436.0,0.00469927]
[1740433434745,0.1623014,94437.0,94436.0,0.00169927]
[1740433434957,0.1623014,94437.0,94436.0,0.00369927]
[1740433435966,0.0034654,94437.0,94436.0,0.00369927]
[1740433436171,0.0008495,94439.0,94436.0,0.05279927]
[1740433436365,0.1596835,94439.0,94437.0,0.0781]
[1740433436565,0.1622994,94438.0,94437.0,0.0781]
[1740433436975,0.0034654,94438.0,94437.0,0.0781]
[1740433437396,0.1622994,94438.0,94437.0,0.0781]
[1740433437573,0.0034654,94438.0,94437.0,0.0781]
[1740433437950,0.1606825,94439.0,94437.0,0.0781]
[1740433438120,0.1596825,94439.0,94437.0,0.0801]
[1740433438335,0.0034654,94438.0,94437.0,0.0801]
[1740433438537,0.0044654,94438.0,94437.0,0.0801]
[1740433438731,0.0034654,94438.0,94437.0,0.0781]